fUST/lending_fUST_20241109
["ID","MTS","AMOUNT","RATE_DAILY","PERIOD"]
[341709707,1731112240888,-594.4,0.00022465,2]
[341709708,1731112240897,-500.0,0.00022465,2]
[341709709,1731112240906,-500.0,0.00022465,2]
[341709710,1731112240915,-500.0,0.00022465,2]
[341709711,1731112240925,-500.0,0.00022465,2]
[341709712,1731112240934,-592.32,0.00022465,2]
[341709713,1731112240943,-500.0,0.00022465,2]
[341709714,1731112240952,-500.0,0.00022465,2]
[341709715,1731112240961,-500.0,0.00022465,2]
[341709716,1731112240971,-500.0,0.00022465,2]
[341709717,1731112240980,-624.22,0.00022465,2]
[341709718,1731112240989,-500.0,0.00022465,2]
[341709719,1731112240999,-500.0,0.00022465,2]
[341709720,1731112241008,-520.37,0.00022465,2]
[341709721,1731112241017,-500.0,0.00022465,2]
[341709722,1731112241026,-500.0,0.00022465,2]
[341709723,1731112241036,-500.0,0.00022465,2]
[341709724,1731112241047,-500.0,0.00022465,2]
[341709725,1731112241057,-500.0,0.00022465,2]
[341709726,1731112241067,-161.07408135,0.00022642,2]
[341709727,1731112241077,-500.0,0.00022659,2]
[341709728,1731112241087,-196.66,0.00022739,2]
[341709729,1731112241095,-542.24,0.00022739,2]
[341709730,1731112241104,-500.0,0.00022739,2]
[341709731,1731112241113,-203.11386849,0.00022739,2]
[341709732,1731112241122,-500.0,0.00022739,2]
[341709733,1731112241131,-500.0,0.00022739,2]
[341709734,1731112241140,-624.22,0.00022739,2]
[341709735,1731112241150,-500.0,0.00022739,2]
[341709736,1731112241159,-200.86,0.00022739,2]
[341709737,1731112241169,-520.37,0.00022739,2]
[341709738,1731112241178,-500.0,0.00022739,2]
[341709739,1731112241187,-500.0,0.00022739,2]
[341709740,1731112241196,-235.42,0.00022739,2]
[341709741,1731112241205,-166.886877,0.00022773,2]
[341709742,1731112241214,-500.0,0.00023013,2]
[341709743,1731112241223,-500.0,0.00023013,2]
[341709744,1731112241233,-406.58,0.00023013,2]
[341709745,1731112241242,-624.22,0.00023013,2]
[341709746,1731112241251,-520.37,0.00023013,2]
[341709747,1731112241260,-500.0,0.00023013,2]
[341709748,1731112241269,-394.1,0.00023013,2]
[341709749,1731112241278,-500.0,0.00023065,2]
[341709750,1731112241289,-500.0,0.00023066,2]
[341709751,1731112241298,-500.0,0.00023067,2]
[341709752,1731112241307,-500.0,0.00023067,2]
[341709753,1731112241316,-500.0,0.00023067,2]
[341709754,1731112241325,-500.0,0.00023067,2]
[341709755,1731112241418,-500.0,0.00023067,2]
[341709756,1731112241428,-500.0,0.00023067,2]
[341709757,1731112241438,-500.0,0.00023067,2]
[341709758,1731112241447,-500.0,0.00023287,2]
[341709759,1731112241456,-500.0,0.00023287,2]
[341709760,1731112241465,-624.22,0.00023287,2]
[341709761,1731112241475,-520.37,0.00023287,2]
[341709762,1731112241485,-500.0,0.00023287,2]
[341709763,1731112241495,-512.1569902,0.00023341,2]
[341709764,1731112241505,-500.0,0.00023341,2]
[341709765,1731112241515,-500.0,0.00023341,2]
[341709766,1731112241524,-1000.0,0.00023342,2]
[341709767,1731112241533,-1000.0,0.00023342,2]
[341709768,1731112241545,-1000.0,0.00023342,2]
[341709769,1731112241554,-477.56427404,0.00023561,2]
[341709770,1731112241563,-500.0,0.00023561,2]
[341709771,1731112241572,-624.22,0.00023561,2]
[341709772,1731112241581,-520.37,0.00023561,2]
[341709773,1731112241590,-500.0,0.00023561,2]
[341709774,1731112241599,-240.35898731,0.00023615,2]
[341709775,1731112241608,-166.886877,0.00023627,2]
[341709776,1731112241617,-150.0,0.000237,2]
[341709777,1731112241626,-420.0,0.00023817,2]
[341709778,1731112241635,-500.0,0.00023835,2]
[341709779,1731112241644,-624.22,0.00023835,2]
[341709780,1731112241653,-520.37,0.00023835,2]
[341709781,1731112241663,-500.0,0.00023835,2]
[341709782,1731112241672,-236.069,0.00024,2]
[341709783,1731112241682,-965.4688816,0.00024029,2]
[341709784,1731112241692,-420.0,0.00024108,2]
[341709785,1731112241701,-500.0,0.00024109,2]
[341709786,1731112241710,-624.22,0.00024109,2]
[341709787,1731112241719,-520.37,0.00024109,2]
[341709788,1731112241728,-500.0,0.00024109,2]
[341709789,1731112241737,-153.08116539,0.00024235,2]
[341709790,1731112241746,-513.70026369,0.00024272,2]
[341709791,1731112241755,-500.0,0.00024383,2]
[341709792,1731112241765,-624.22,0.00024383,2]
[341709793,1731112241774,-520.37,0.00024383,2]
[341709794,1731112241785,-624.75999999,0.00024383,2]
[341709795,1731112241797,-166.886877,0.00024482,2]
[341709796,1731112241806,-500.0,0.00024657,2]
[341709797,1731112241815,-624.22,0.00024657,2]
[341709798,1731112241825,-520.37,0.00024657,2]
[341709799,1731112241834,-380.0,0.00024658,2]
[341709800,1731112241844,-244.80507811,0.00024658,2]
[341709801,1731112241854,-205.17239973,0.00024658,2]
[341709802,1731112241863,-500.0,0.00024931,2]
[341709803,1731112241872,-624.22,0.00024931,2]
[341709804,1731112241881,-520.37,0.00024931,2]
[341709805,1731112241891,-165.473444,0.00025156,2]
[341709806,1731112241899,-500.0,0.00025205,2]
[341709807,1731112241908,-624.22,0.00025205,2]
[341709808,1731112241917,-520.37,0.00025205,2]
[341709809,1731112241926,-500.0,0.00025479,2]
[341709810,1731112241935,-624.22,0.00025479,2]
[341709811,1731112241944,-520.37,0.00025479,2]
[341709812,1731112241953,-500.0,0.00025753,2]
[341709813,1731112241962,-624.22,0.00025753,2]
[341709814,1731112241971,-520.37,0.00025753,2]
[341709815,1731112241981,-500.0,0.00025847,2]
[341709816,1731112241990,-1000.0,0.00025847,2]
[341709817,1731112241999,-587.0,0.00025884,2]
[341709818,1731112242008,-154.7924861,0.00025963,2]
[341709819,1731112242018,-793.84724434,0.00025963,2]
[341709820,1731112242027,-2858.67416435,0.00025999,2]
[341709821,1731112242036,-10902.61668652,0.00026,2]
[341709822,1731112242046,-500.0,0.00026027,2]
[341709823,1731112242055,-624.22,0.00026027,2]
[341709824,1731112242064,-520.37,0.00026027,2]
[341709825,1731112242073,-563.9581,0.00026301,2]
[341709826,1731112242082,-624.22,0.00026301,2]
[341709827,1731112242091,-520.37,0.00026301,2]
[341709828,1731112242101,-377.0,0.00026518,2]
[341709829,1731112242110,-624.22,0.00026575,2]
[341709830,1731112242119,-520.37,0.00026575,2]
[341709831,1731112242127,-513.70026369,0.00026728,2]
[341709832,1731112242136,-600.0,0.00026849,2]
[341709833,1731112242145,-624.22,0.00026849,2]
[341709834,1731112242156,-520.37,0.00026849,2]
[341709835,1731112242165,-522.4445,0.00026991,2]
[341709836,1731112242174,-624.22,0.00027123,2]
[341709837,1731112242183,-520.37,0.00027123,2]
[341709838,1731112242192,-624.22,0.00027397,2]
[341709839,1731112242200,-520.37,0.00027397,2]
[341709840,1731112242209,-500.0,0.00027397,2]
[341709841,1731112242218,-500.0,0.00027397,2]
[341709842,1731112242227,-574.79837999,0.00027397,2]
[341709843,1731112242236,-500.0,0.00027655,120]
[341709844,1731112242245,-624.22,0.00027671,2]
[341709845,1731112242254,-520.37,0.00027671,2]
[341709846,1731112242263,-158.455,0.000278,43]
[341709847,1731112242272,-624.22,0.00027945,2]
[341709848,1731112242281,-520.37,0.00027945,2]
[341709849,1731112242291,-823.0,0.0002813,2]
[341709850,1731112242300,-624.34,0.00028219,2]
[341709851,1731112242309,-520.50488846,0.00028219,2]
[341709852,1731112242318,-454.7209773,0.00028248,30]
[341709853,1731112242327,-1135.0,0.00028726,2]
[341709854,1731112242340,-529.0,0.00028726,2]
[341709855,1731112242350,-2393.0,0.00028726,2]
[341709856,1731112242360,-1822.5,0.00028863,10]
[341709857,1731112242368,-3475.39,0.00028863,10]
[341709858,1731112242378,-150.0,0.00028874,2]
[341709860,1731112242388,-150.0,0.00028874,2]
[341709862,1731112242397,-150.0,0.00028874,2]
[341709864,1731112242407,-158.496,0.00028983,120]
[341709865,1731112242418,-513.70026369,0.00029183,2]
[341709866,1731112242427,-565.1232099,0.00029445,2]
[341709867,1731112242436,-600.0,0.00029589,4]
[341709868,1731112242445,-520.0,0.00029674,2]
[341709869,1731112242455,-3106.83133869,0.000297,2]
[341709870,1731112242464,-500.0,0.00029899,2]
[341709871,1731112242474,-320.06784201,0.00029899,2]
[341709872,1731112242483,-238.83697023,0.00029899,2]
[341709873,1731112242491,-500.0,0.00029899,2]
[341709874,1731112242501,-294.9621779,0.00029899,2]
[341709875,1731112242510,-500.0,0.00029899,2]
[341709876,1731112242519,-500.0,0.00029899,2]
[341709877,1731112242528,-500.0,0.00029899,2]
[341709878,1731112242539,-500.0,0.00029899,2]
[341709880,1731112242548,-254.58658055,0.00029899,2]
[341709881,1731112242558,-500.0,0.00029899,2]
[341709882,1731112242567,-500.0,0.00029899,2]
[341709883,1731112242577,-500.0,0.00029899,2]
[341709884,1731112242587,-500.0,0.00029899,2]
[341709885,1731112242596,-500.0,0.00029899,2]
[341709886,1731112242605,-500.0,0.00029899,2]
[341709887,1731112242615,-500.0,0.00029899,2]
[341709888,1731112242624,-500.0,0.00029899,2]
[341709889,1731112242633,-500.0,0.00029899,2]
[341709890,1731112242643,-500.0,0.00029899,2]
[341709891,1731112242651,-174.51772784,0.00029899,2]
[341709892,1731112242660,-500.0,0.00029899,2]
[341709893,1731112242670,-400.0,0.00029899,2]
[341709894,1731112242679,-20196.4331877,0.000299,3]
[341709895,1731112242688,-4557.12314447,0.000299,2]
[341709896,1731112242697,-4557.12314445,0.000299,2]
[341709897,1731112242706,-4557.12314445,0.000299,2]
[341709898,1731112242715,-4557.12314445,0.000299,2]
[341709899,1731112242724,-8211.1042153,0.000299,2]
[341709900,1731112242733,-8211.1042153,0.000299,2]
[341709901,1731112242742,-8211.1042153,0.000299,2]
[341709902,1731112242751,-8211.1042153,0.000299,2]
[341709903,1731112242760,-758.0,0.00029998,2]
[341709904,1731112242769,-150.0,0.00029998,2]
[341709905,1731112242778,-500.0,0.00029998,2]
[341709906,1731112242790,-150.0,0.00029998,2]
[341709907,1731112242799,-150.0,0.00029998,2]
[341709908,1731112242808,-150.0,0.00029998,2]
[341709909,1731112242817,-43060.10722908,0.0003,2]
[341709910,1731112242826,-4125.0,0.0003,7]
[341709911,1731112242835,-151.0,0.0003,120]
[341709912,1731112242844,-2070.21934936,0.0003,15]
[341709913,1731112242854,-809.33,0.0003,2]
[341709914,1731112242863,-239.0,0.0003,2]
[341709915,1731112242872,-871.875925,0.00030115,2]
[341709916,1731112242882,-500.0,0.00030136,7]
[341709917,1731112242892,-4528.35,0.00030136,120]
[341709918,1731112242901,-234.66412096,0.00030137,2]
[341709919,1731112242911,-500.0,0.000302,32]
[341709920,1731112242920,-150.0,0.00030232,120]
[341709921,1731112242931,-758.0,0.00030272,2]
[341709923,1731112242940,-932.01096194,0.00030272,2]
[341709925,1731112242949,-150.0,0.00030272,2]
[341709926,1731112242958,-150.0,0.00030272,2]
[341709927,1731112242968,-758.0,0.00030546,2]
[341709928,1731112242978,-150.0,0.00030546,2]
[341709929,1731112242987,-596.0,0.0003057,2]
[341709930,1731112242997,-158.52871975,0.00030729,2]
[341709931,1731112243006,-600.0,0.00030805,3]
[341709932,1731112243015,-758.0,0.0003082,2]
[341709933,1731112243024,-150.0,0.0003082,2]
[341709934,1731112243033,-500.0,0.00030867,3]
[341709935,1731112243043,-1000.0,0.00030958,14]
[341709936,1731112243053,-1000.0,0.00030958,14]
[341709937,1731112243062,-1000.0,0.00030958,14]
[341709938,1731112243071,-461.49926671,0.00030958,14]
[341709939,1731112243081,-7769.0,0.00031,5]
[341709940,1731112243090,-758.0,0.00031094,2]
[341709941,1731112243099,-161.24,0.00031094,2]
[341709942,1731112243109,-4528.35,0.00031095,120]
[341709943,1731112243118,-500.0,0.00031112,3]
[341709944,1731112243127,-500.0,0.000312,35]
[341709945,1731112243136,-454.546864,0.00031231,2]
[341709946,1731112243145,-500.0,0.00031232,10]
[341709947,1731112243155,-5000.0,0.00031349,30]
[341709948,1731112243164,-758.0,0.00031368,2]
[341709949,1731112243173,-500.0,0.00031414,3]
[341709950,1731112243183,-580.0,0.000315,30]
[341709951,1731112243192,-772.0,0.000315,2]
[341709953,1731112243202,-814.59975385,0.000315,30]
[341709955,1731112243211,-513.70026369,0.00031638,2]
[341709956,1731112243221,-3000.0,0.0003164,2]
[341709957,1731112243230,-758.0,0.00031642,2]
[341709958,1731112243239,-500.0,0.00031713,3]
[341709959,1731112243249,-151.0,0.00031726,120]
[341709960,1731112243258,-1000.0,0.00031728,2]
[341709961,1731112243267,-10000.0,0.00031729,30]
[341709962,1731112243275,-10000.0,0.00031738,30]
[341709963,1731112243285,-10000.0,0.00031738,30]
[341709964,1731112243295,-10000.0,0.00031738,30]
[341709965,1731112243304,-376.0,0.00031738,30]
[341709966,1731112243313,-2544.51945906,0.00031738,4]
[341709967,1731112243323,-4999.999,0.00031739,30]
[341709968,1731112243332,-5048.28876536,0.0003174,30]
[341709969,1731112243351,-9602.11401123,0.0003174,30]
[341709970,1731112243362,-13589.59722341,0.0003174,30]
[341709971,1731112243371,-1000.0,0.0003174,2]
[341709972,1731112243380,-1174.92436011,0.00031743,10]
[341709973,1731112243393,-18971.63055895,0.00031743,10]
[341709974,1731112243408,-344.67523948,0.00028853,10]
[341709975,1731112243420,-613.48694805,0.00028853,10]
[341709976,1731112243433,-600.23132033,0.00028853,10]
[341709977,1731112244284,694.44444444,0.00020843,2]
[341709982,1731112246140,-1337.76649214,0.00028853,10]
[341709983,1731112246151,-323179.82085653,0.00031743,10]
[341709990,1731112424829,3633.554,0.00031767,30]
[341709993,1731112556389,694.44444444,0.00020843,2]
[341709994,1731112760446,165.2354,0.00013973,2]
[341709995,1731112867834,694.44444444,0.00020843,2]
[341709996,1731112921294,216.978926,0.00031744,120]
[341709998,1731113179586,694.44444444,0.00020843,2]
[341710088,1731113431961,-296.500734,0.00021058,2]
[341710090,1731113432017,-397.94371044,0.00021058,2]
[341710091,1731113432027,-300.0,0.00021916,2]
[341710092,1731113432036,-300.0,0.00021916,2]
[341710093,1731113432046,-500.0,0.00021917,2]
[341710094,1731113432055,-500.0,0.00021917,2]
[341710095,1731113432065,-250.45389701,0.00021917,2]
[341710096,1731113432074,-548.47,0.00021917,2]
[341710097,1731113432083,-500.0,0.00021917,2]
[341710098,1731113432092,-500.0,0.00021917,2]
[341710099,1731113432101,-501.6,0.00021917,2]
[341710100,1731113432111,-500.0,0.00021917,2]
[341710101,1731113432120,-189.386134,0.00021917,2]
[341710102,1731113432129,-500.0,0.00021917,2]
[341710103,1731113432138,-500.0,0.00021917,2]
[341710104,1731113432147,-409.63505151,0.00021917,2]
[341710116,1731113438095,-90.36494849,0.00021917,2]
[341710117,1731113438105,-206.86,0.00022191,2]
[341710118,1731113438114,-500.0,0.00022191,2]
[341710119,1731113438124,-500.0,0.00022191,2]
[341710120,1731113438133,-352.34,0.00022465,2]
[341710121,1731113438142,-205.8981741,0.00022952,2]
[341710122,1731113438152,-500.0,0.00023286,2]
[341710123,1731113438161,-500.0,0.00023286,2]
[341710124,1731113438286,-500.0,0.00023286,2]
[341710125,1731113438300,-500.0,0.00023286,2]
[341710126,1731113438309,-373.85,0.0002356,2]
[341710127,1731113438319,-500.0,0.0002356,2]
[341710128,1731113438328,-420.0,0.00023817,2]
[341710129,1731113438337,-500.0,0.00023833,2]
[341710130,1731113438346,-500.0,0.00023833,2]
[341710131,1731113438359,-500.0,0.00023833,2]
[341710132,1731113438369,-500.0,0.00023833,2]
[341710133,1731113438378,-500.0,0.00023833,2]
[341710134,1731113438387,-280.80882778,0.00023833,2]
[341710135,1731113438396,-204.95,0.00023834,2]
[341710136,1731113438405,-500.0,0.00023834,2]
[341710137,1731113438414,-500.0,0.00023834,2]
[341710138,1731113438423,-500.0,0.00024107,2]
[341710139,1731113438433,-500.0,0.00024107,2]
[341710140,1731113438442,-500.0,0.00024107,2]
[341710141,1731113438452,-500.0,0.00024107,2]
[341710142,1731113438461,-176.2,0.00024107,2]
[341710143,1731113438479,-500.0,0.00024107,2]
[341710144,1731113438492,-500.0,0.00024108,2]
[341710145,1731113438501,-227.273432,0.00024341,2]
[341710146,1731113438510,-500.0,0.00024381,2]
[341710147,1731113438520,-500.0,0.00024381,2]
[341710148,1731113438529,-171.66,0.00024381,2]
[341710149,1731113438538,-468.41172215,0.00024381,2]
[341710150,1731113438550,-31.58827785,0.00024381,2]
[341710151,1731113438559,-336.01,0.00024382,2]
[341710152,1731113438567,-500.0,0.00024655,2]
[341710153,1731113438576,-500.0,0.00024655,2]
[341710155,1731113438586,-500.0,0.00024655,2]
[341710157,1731113438595,-500.0,0.00024929,2]
[341710159,1731113438604,-500.0,0.00024929,2]
[341710161,1731113438613,-500.0,0.00024929,2]
[341710163,1731113438622,-165.2354,0.00025156,2]
[341710165,1731113438631,-500.0,0.00025203,2]
[341710167,1731113438640,-312.1,0.00025203,2]
[341710169,1731113438649,-500.0,0.00025203,2]
[341710170,1731113438658,-500.0,0.00025477,2]
[341710172,1731113438667,-500.0,0.00025477,2]
[341710174,1731113438676,-486.07,0.00025751,2]
[341710176,1731113438685,-500.0,0.00025751,2]
[341710178,1731113438694,-587.0,0.00025884,2]
[341710180,1731113438704,-500.0,0.00026025,2]
[341710182,1731113438713,-500.0,0.00026299,2]
[341710184,1731113438734,-500.0,0.00026573,2]
[341710186,1731113438743,-500.0,0.00026847,2]
[341710188,1731113438752,-1239.18946757,0.00027021,2]
[341710190,1731113438762,-500.0,0.00027121,2]
[341710192,1731113438770,-562.9,0.00027395,2]
[341710194,1731113438779,-1239.18946755,0.00027681,2]
[341710196,1731113438788,-176.0,0.0002813,2]
[341710198,1731113438798,-1239.18946755,0.00028342,2]
[341710200,1731113438807,-1239.18946755,0.00029002,2]
[341710202,1731113438817,-1239.18946755,0.00029663,2]
[341710204,1731113438826,-151.0,0.0003,120]
[341710206,1731113438835,-809.33,0.0003,2]
[341710208,1731113438845,-580.0,0.0003,30]
[341710210,1731113438855,-244.0,0.0003,2]
[341710212,1731113438865,-871.875925,0.00030115,2]
[341710214,1731113438874,-645.65127077,0.00030115,7]
[341710216,1731113438884,-500.0,0.00030136,7]
[341710218,1731113438894,-234.66412096,0.00030137,2]
[341710220,1731113438903,-1239.18946755,0.00030323,2]
[341710222,1731113438913,-158.52871975,0.00030729,2]
[341710224,1731113438923,-153.0,0.00030795,30]
[341710226,1731113438933,-303.4019452,0.00030932,30]
[341710228,1731113438942,-1000.0,0.00030958,14]
[341710230,1731113438952,-1000.0,0.00030958,14]
[341710232,1731113438961,-1000.0,0.00030958,14]
[341710234,1731113438981,-461.49926671,0.00030958,14]
[341710236,1731113438991,-1239.18946755,0.00030984,2]
[341710238,1731113439000,-216.51457556,0.00031,2]
[341710240,1731113439009,-600.0,0.00031108,3]
[341710242,1731113439019,-500.0,0.00031232,10]
[341710244,1731113439028,-500.0,0.00031412,3]
[341710246,1731113439038,-772.0,0.000316,2]
[341710248,1731113439049,-155.71679353,0.00031613,2]
[341710249,1731113439058,-155.71679351,0.00031621,2]
[341710250,1731113439067,-155.71679351,0.00031629,2]
[341710251,1731113439078,-155.71679351,0.00031636,2]
[341710252,1731113439087,-155.71679351,0.00031644,2]
[341710253,1731113439096,-1239.18946755,0.00031644,2]
[341710254,1731113439105,-1000.0,0.00031644,2]
[341710255,1731113439114,-12344.70000012,0.00031667,2]
[341710256,1731113439124,-3000.0,0.00031667,2]
[341710257,1731113439133,-2413.47,0.0003169,10]
[341710258,1731113439143,-520.77758155,0.0003169,10]
[341710351,1731113443334,-501.28777618,0.00023586,2]
[341710353,1731113443344,-158.537,0.0003098,30]
[341710355,1731113443356,-960.62234902,0.0003169,10]
[341710537,1731113491522,694.44444444,0.00020843,2]
[341710539,1731113562752,165.068341,0.00013973,2]
[341710541,1731113746466,1356.78,0.00031744,30]
[341710542,1731113802709,694.44444444,0.00020843,2]
[341710545,1731114113692,694.44444444,0.00020843,2]
[341710546,1731114277782,165.072596,0.00013973,2]
[341710549,1731114425218,694.44444444,0.00020843,2]
[341710594,1731114632261,-694.44444444,0.00021392,2]
[341710596,1731114632270,-166.886877,0.00021918,2]
[341710597,1731114632279,-174.775794,0.000221,2]
[341710598,1731114632288,-214.815686,0.00022475,2]
[341710599,1731114632297,-300.0,0.00022559,2]
[341710600,1731114632306,-300.0,0.00022559,2]
[341710601,1731114632315,-16177.1139001,0.0002256,2]
[341710602,1731114632325,-307.39598282,0.0002295,2]
[341710603,1731114632336,-500.0,0.00023049,2]
[341710604,1731114632347,-518.54187847,0.0002305,2]
[341710605,1731114632357,-500.0,0.0002305,2]
[341710606,1731114632367,-501.82290906,0.0002305,2]
[341710607,1731114632376,-500.0,0.0002305,2]
[341710608,1731114632385,-500.0,0.0002305,2]
[341710609,1731114632394,-504.07791051,0.0002305,2]
[341710610,1731114632404,-565.09796125,0.0002305,2]
[341710611,1731114632413,-500.0,0.0002305,2]
[341710612,1731114632422,-500.0,0.0002305,2]
[341710613,1731114632431,-506.56757609,0.0002305,2]
[341710614,1731114632440,-508.85776512,0.0002305,2]
[341710615,1731114632449,-511.48382028,0.0002305,2]
[341710616,1731114632458,-500.0,0.0002305,2]
[341710617,1731114632467,-500.0,0.0002305,2]
[341710618,1731114632476,-500.0,0.0002305,2]
[341710619,1731114632485,-500.0,0.0002305,2]
[341710620,1731114632595,-500.0,0.0002305,2]
[341710621,1731114632604,-500.0,0.0002305,2]
[341710622,1731114632613,-500.0,0.0002305,2]
[341710623,1731114632622,-500.0,0.0002305,2]
[341710624,1731114632631,-196.06923042,0.0002305,2]
[341710625,1731114632640,-500.0,0.0002305,2]
[341710626,1731114632651,-423.42912549,0.0002305,2]
[341710627,1731114632660,-500.0,0.0002305,2]
[341710628,1731114632669,-500.0,0.0002305,2]
[341710629,1731114632678,-315.87660318,0.0002305,2]
[341710630,1731114632687,-500.0,0.0002305,2]
[341710631,1731114632695,-500.0,0.0002305,2]
[341710632,1731114632704,-500.0,0.0002305,2]
[341710633,1731114632713,-500.0,0.0002305,2]
[341710634,1731114632723,-500.0,0.0002305,2]
[341710635,1731114632732,-500.0,0.0002305,2]
[341710636,1731114632741,-500.0,0.0002305,2]
[341710637,1731114632750,-762.7,0.0002305,2]
[341710638,1731114632759,-500.0,0.0002305,2]
[341710639,1731114632768,-500.0,0.0002305,2]
[341710640,1731114632777,-500.0,0.0002305,2]
[341710641,1731114632785,-1077.94,0.0002305,2]
[341710642,1731114632794,-1373.36,0.0002305,2]
[341710643,1731114632803,-500.0,0.0002305,2]
[341710644,1731114632813,-500.0,0.0002305,2]
[341710645,1731114632822,-500.0,0.0002305,2]
[341710646,1731114632831,-500.0,0.0002305,2]
[341710647,1731114632840,-233.05547411,0.0002305,2]
[341710648,1731114632853,-500.0,0.0002305,2]
[341710649,1731114632862,-500.0,0.0002305,2]
[341710650,1731114632871,-500.0,0.0002305,2]
[341710651,1731114632880,-572.14785551,0.0002305,2]
[341710652,1731114632890,-500.0,0.0002305,2]
[341710653,1731114632901,-500.0,0.0002305,2]
[341710654,1731114632911,-500.0,0.0002305,2]
[341710655,1731114632920,-500.0,0.0002305,2]
[341710656,1731114632930,-196.26702558,0.0002305,2]
[341710657,1731114632939,-500.0,0.0002305,2]
[341710658,1731114632948,-500.0,0.0002305,2]
[341710659,1731114632958,-5922.3422156,0.00023051,2]
[341710660,1731114632967,-396.6100146,0.00023286,2]
[341710661,1731114632976,-516.05753601,0.00023286,2]
[341710662,1731114632985,-515.23362117,0.00023286,2]
[341710663,1731114632994,-289.81618638,0.00023286,2]
[341710664,1731114633003,-526.41689485,0.00023286,2]
[341710665,1731114633012,-510.05901299,0.00023286,2]
[341710666,1731114633021,-500.0,0.00023286,2]
[341710667,1731114633031,-509.45792286,0.00023286,2]
[341710668,1731114633040,-500.0,0.00023286,2]
[341710669,1731114633050,-263.93265804,0.00023286,2]
[341710670,1731114633059,-512.75098867,0.00023286,2]
[341710671,1731114633069,-517.97887837,0.00023286,2]
[341710672,1731114633078,-512.31636041,0.00023286,2]
[341710673,1731114633087,-512.26399439,0.00023286,2]
[341710674,1731114633097,-500.0,0.00023323,2]
[341710675,1731114633107,-500.0,0.00023324,2]
[341710676,1731114633117,-500.0,0.00023324,2]
[341710677,1731114633126,-500.0,0.00023324,2]
[341710678,1731114633135,-500.0,0.00023324,2]
[341710679,1731114633144,-500.0,0.00023324,2]
[341710680,1731114633155,-500.0,0.00023324,2]
[341710681,1731114633164,-500.0,0.00023324,2]
[341710682,1731114633174,-500.0,0.00023324,2]
[341710683,1731114633184,-500.0,0.00023324,2]
[341710684,1731114633193,-500.0,0.00023324,2]
[341710685,1731114633204,-500.0,0.00023324,2]
[341710686,1731114633213,-500.0,0.00023324,2]
[341710687,1731114633223,-500.0,0.00023324,2]
[341710688,1731114633231,-500.0,0.00023324,2]
[341710689,1731114633242,-500.0,0.00023324,2]
[341710690,1731114633251,-142.51720548,0.00023324,2]
[341710733,1731114638318,-357.48279452,0.00023324,2]
[341710735,1731114638328,-136.67231995,0.00023324,2]
[341710741,1731114638379,-337.21064573,0.00023324,2]
[341710743,1731114638388,-500.0,0.00023324,2]
[341710745,1731114638398,-500.0,0.00023324,2]
[341710746,1731114638408,-500.0,0.00023324,2]
[341710747,1731114638417,-203.11386849,0.00023324,2]
[341710748,1731114638426,-762.7,0.00023324,2]
[341710749,1731114638436,-509.28142649,0.00023324,2]
[341710750,1731114638445,-500.0,0.00023324,2]
[341710751,1731114638454,-500.0,0.00023324,2]